fUSD/lending_fUSD_20250930
["ID","MTS","AMOUNT","RATE_DAILY","PERIOD"]
[388592220,1759246340357,-1664.54,0.00020547,2]
[388592221,1759246340367,-562.58,0.00020547,2]
[388592222,1759246340377,-560.22,0.00020547,2]
[388592223,1759246340388,-741.9,0.00020547,2]
[388592224,1759246340399,-1053.34,0.00020547,2]
[388592225,1759246340408,-500.0,0.00020547,2]
[388592226,1759246340418,-1625.1,0.00020547,2]
[388592227,1759246340427,-500.0,0.00020547,2]
[388592228,1759246340437,-771.68,0.00020547,2]
[388592229,1759246340542,-500.0,0.00020547,2]
[388592230,1759246340593,-500.0,0.00020547,2]
[388592231,1759246340604,-500.0,0.00020547,2]
[388592232,1759246340614,-500.0,0.00020547,2]
[388592233,1759246340625,-1475.07,0.00020547,2]
[388592234,1759246340639,-500.0,0.00020547,2]
[388592235,1759246340649,-500.0,0.00020547,2]
[388592236,1759246340660,-500.0,0.00020547,2]
[388592237,1759246340670,-1127.64,0.00020547,2]
[388592238,1759246340680,-816.76,0.00020547,2]
[388592239,1759246340691,-517.86,0.00020547,2]
[388592240,1759246340702,-297.81439846,0.00020547,2]
[388592241,1759246340712,-500.0,0.00020547,2]
[388592242,1759246340721,-500.0,0.00020547,2]
[388592243,1759246340733,-1578.89,0.00020547,2]
[388592244,1759246340742,-975.31,0.00020547,2]
[388592245,1759246340752,-575.3,0.00020547,2]
[388592246,1759246340762,-500.0,0.00020547,2]
[388592247,1759246340773,-500.0,0.00020547,2]
[388592248,1759246340783,-500.0,0.00020547,2]
[388592249,1759246340795,-795.3,0.00020547,2]
[388592250,1759246340805,-500.0,0.00020547,2]
[388592251,1759246340817,-831.43,0.00020547,2]
[388592252,1759246340829,-500.0,0.00020547,2]
[388592253,1759246340840,-355.23141624,0.00020547,2]
[388592254,1759246340850,-508.93,0.00020547,2]
[388592255,1759246340860,-1605.51,0.00020547,2]
[388592256,1759246340870,-2124.82,0.00020547,2]
[388592257,1759246340879,-814.65,0.00020547,2]
[388592258,1759246340891,-814.65,0.00020547,2]
[388592259,1759246340900,-746.76,0.00020547,2]
[388592260,1759246340910,-500.0,0.00020547,2]
[388592261,1759246340920,-500.0,0.00020547,2]
[388592262,1759246340930,-755.79,0.00020547,2]
[388592263,1759246340940,-500.0,0.00020547,2]
[388592264,1759246340950,-772.99,0.00020547,2]
[388592265,1759246340962,-500.0,0.00020547,2]
[388592266,1759246340972,-2954.2,0.00020547,2]
[388592267,1759246340982,-1914.74,0.00020547,2]
[388592268,1759246340991,-2315.03,0.00020547,2]
[388592269,1759246341001,-500.0,0.00020547,2]
[388592270,1759246341011,-1158.5,0.00020547,2]
[388592271,1759246341021,-748.78,0.00020547,2]
[388592272,1759246341031,-873.41,0.00020547,2]
[388592273,1759246341041,-1444.18,0.00020547,2]
[388592274,1759246341051,-265.4,0.00020547,2]
[388592275,1759246341060,-374.60705024,0.00020547,2]
[388592276,1759246341070,-500.0,0.00020547,2]
[388592277,1759246341079,-1278.36,0.00020547,2]
[388592278,1759246341090,-856.51,0.00020547,2]
[388592279,1759246341099,-500.0,0.00020547,2]
[388592280,1759246341108,-512.95,0.00020547,2]
[388592281,1759246341118,-1123.83,0.00020547,2]
[388592282,1759246341128,-500.0,0.00020547,2]
[388592283,1759246341139,-3067.31,0.00020547,2]
[388592284,1759246341149,-500.0,0.00020547,2]
[388592285,1759246341160,-559.30013261,0.00020547,2]
[388592286,1759246341169,-500.0,0.00020547,2]
[388592287,1759246341179,-790.11,0.00020547,2]
[388592288,1759246341188,-500.0,0.00020547,2]
[388592289,1759246341198,-1074.86,0.00020547,2]
[388592290,1759246341208,-500.0,0.00020547,2]
[388592291,1759246341217,-743.02,0.00020547,2]
[388592292,1759246341227,-500.0,0.00020547,2]
[388592293,1759246341237,-2639.35,0.00020547,2]
[388592294,1759246341247,-500.0,0.00020547,2]
[388592295,1759246341256,-500.0,0.00020547,2]
[388592296,1759246341265,-500.0,0.00020547,2]
[388592297,1759246341275,-603.37,0.00020547,2]
[388592298,1759246341285,-2515.31,0.00020547,2]
[388592299,1759246341295,-500.0,0.00020547,2]
[388592300,1759246341304,-500.0,0.00020547,2]
[388592301,1759246341314,-500.0,0.00020547,2]
[388592302,1759246341324,-1424.54,0.00020547,2]
[388592303,1759246341337,-629.69,0.00020547,2]
[388592304,1759246341348,-500.0,0.00020547,2]
[388592305,1759246341359,-500.0,0.00020547,2]
[388592306,1759246341369,-1515.2,0.00020547,2]
[388592307,1759246341379,-2490.07,0.00020547,2]
[388592308,1759246341390,-500.0,0.00020547,2]
[388592309,1759246341400,-509.34,0.00020547,2]
[388592310,1759246341410,-500.0,0.00020547,2]
[388592311,1759246341420,-565.6,0.00020547,2]
[388592312,1759246341430,-500.0,0.00020547,2]
[388592313,1759246341439,-500.0,0.00020547,2]
[388592314,1759246341449,-666.34,0.00020547,2]
[388592315,1759246341459,-544.49,0.00020547,2]
[388592316,1759246341470,-500.0,0.00020547,2]
[388592317,1759246341480,-685.3,0.00020547,2]
[388592318,1759246341490,-500.0,0.00020547,2]
[388592319,1759246341500,-500.0,0.00020547,2]
[388592320,1759246341510,-500.0,0.00020547,2]
[388592321,1759246341520,-500.0,0.00020547,2]
[388592322,1759246341529,-481.91042535,0.00020547,2]
[388592323,1759246341539,-500.0,0.00020547,2]
[388592324,1759246341548,-500.0,0.00020547,2]
[388592325,1759246341558,-856.76,0.00020547,2]
[388592326,1759246341568,-784.99,0.00020547,2]
[388592327,1759246341578,-500.0,0.00020547,2]
[388592328,1759246341588,-500.0,0.00020547,2]
[388592329,1759246341597,-500.0,0.00020547,2]
[388592330,1759246341607,-500.0,0.00020547,2]
[388592331,1759246341617,-4857.1,0.00020547,2]
[388592332,1759246341627,-2587.65,0.00020547,2]
[388592333,1759246341640,-1000.84,0.00020547,2]
[388592334,1759246341650,-500.0,0.00020547,2]
[388592335,1759246341660,-500.0,0.00020547,2]
[388592336,1759246341670,-500.0,0.00020547,2]
[388592337,1759246341680,-500.0,0.00020547,2]
[388592338,1759246341689,-955.87,0.00020547,2]
[388592339,1759246341698,-403.59241747,0.00020547,2]
[388592340,1759246341708,-620.53,0.00020547,2]
[388592341,1759246341718,-500.0,0.00020547,2]
[388592342,1759246341728,-1236.64,0.00020547,2]
[388592343,1759246341738,-500.0,0.00020547,2]
[388592344,1759246341748,-500.0,0.00020547,2]
[388592345,1759246341758,-500.0,0.00020547,2]
[388592346,1759246341767,-2263.53,0.00020547,2]
[388592347,1759246341777,-500.0,0.00020547,2]
[388592348,1759246341786,-500.0,0.00020547,2]
[388592349,1759246341796,-1017.47,0.00020547,2]
[388592350,1759246341806,-500.0,0.00020547,2]
[388592351,1759246341816,-1720.79,0.00020547,2]
[388592352,1759246341825,-500.0,0.00020547,2]
[388592353,1759246341835,-642.86,0.00020547,2]
[388592354,1759246341846,-500.0,0.00020547,2]
[388592355,1759246341856,-2291.89,0.00020547,2]
[388592356,1759246341866,-500.0,0.00020547,2]
[388592357,1759246341876,-918.34,0.00020547,2]
[388592358,1759246341888,-2740.65,0.00020547,2]
[388592359,1759246341898,-876.15,0.00020547,2]
[388592360,1759246341908,-5036.26,0.00020547,2]
[388592361,1759246341917,-500.0,0.00020547,2]
[388592362,1759246341927,-1702.84,0.00020547,2]
[388592363,1759246341937,-583.7,0.00020547,2]
[388592364,1759246341946,-3972.16,0.00020547,2]
[388592365,1759246341955,-711.31,0.00020547,2]
[388592366,1759246341965,-1715.56,0.00020547,2]
[388592367,1759246341975,-500.0,0.00020547,2]
[388592368,1759246341984,-500.0,0.00020547,2]
[388592369,1759246341994,-838.69,0.00020547,2]
[388592370,1759246342004,-795.93,0.00020547,2]
[388592371,1759246342013,-3407.7,0.00020547,2]
[388592372,1759246342023,-1305.49,0.00020547,2]
[388592373,1759246342032,-1105.85,0.00020547,2]
[388592374,1759246342042,-500.0,0.00020547,2]
[388592375,1759246342051,-500.0,0.00020547,2]
[388592376,1759246342061,-1298.46,0.00020547,2]
[388592377,1759246342071,-576.52,0.00020547,2]
[388592378,1759246342080,-894.0,0.00020547,2]
[388592379,1759246342090,-665.23,0.00020547,2]
[388592380,1759246342100,-1958.71,0.00020547,2]
[388592381,1759246342110,-1197.44,0.00020547,2]
[388592382,1759246342119,-500.0,0.00020547,2]
[388592383,1759246342129,-500.0,0.00020547,2]
[388592384,1759246342140,-500.0,0.00020547,2]
[388592385,1759246342150,-507.83,0.00020547,2]
[388592386,1759246342160,-500.0,0.00020547,2]
[388592387,1759246342170,-500.0,0.00020547,2]
[388592388,1759246342180,-500.0,0.00020547,2]
[388592389,1759246342190,-557.89678612,0.00020547,2]
[388592390,1759246342200,-600.48,0.00020547,2]
[388592391,1759246342211,-500.0,0.00020547,2]
[388592392,1759246342221,-798.63,0.00020547,2]
[388592393,1759246342231,-1205.22,0.00020547,2]
[388592394,1759246342240,-1348.57,0.00020547,2]
[388592395,1759246342250,-572.59,0.00020547,2]
[388592396,1759246342260,-500.0,0.00020547,2]
[388592397,1759246342271,-1363.77,0.00020547,2]
[388592398,1759246342281,-4476.81,0.00020547,2]
[388592399,1759246342291,-672.17,0.00020547,2]
[388592400,1759246342300,-1570.81,0.00020547,2]
[388592401,1759246342310,-1083.55,0.00020547,2]
[388592402,1759246342320,-500.0,0.00020547,2]
[388592403,1759246342332,-500.0,0.00020547,2]
[388592404,1759246342343,-500.0,0.00020547,2]
[388592405,1759246342352,-1413.1,0.00020547,2]
[388592406,1759246342362,-500.0,0.00020547,2]
[388592407,1759246342372,-500.0,0.00020547,2]
[388592408,1759246342382,-1559.28,0.00020547,2]
[388592409,1759246342391,-1252.09,0.00020547,2]
[388592410,1759246342401,-500.0,0.00020547,2]
[388592411,1759246342412,-500.0,0.00020547,2]
[388592412,1759246342421,-500.0,0.00020547,2]
[388592413,1759246342433,-2063.17,0.00020547,2]
[388592414,1759246342442,-882.83,0.00020547,2]
[388592415,1759246342453,-500.0,0.00020547,2]
[388592416,1759246342465,-500.0,0.00020547,2]
[388592417,1759246342474,-2665.26,0.00020547,2]
[388592418,1759246342482,-500.0,0.00020547,2]
[388592419,1759246342492,-1563.72,0.00020547,2]
[388592420,1759246342503,-500.0,0.00020547,2]
[388592421,1759246342513,-500.0,0.00020547,2]
[388592422,1759246342523,-583.08,0.00020547,2]
[388592423,1759246342535,-500.0,0.00020547,2]
[388592424,1759246342545,-934.85,0.00020547,2]
[388592425,1759246342560,-837.59,0.00020547,2]
[388592426,1759246342570,-3090.82,0.00020547,2]
[388592427,1759246342581,-500.0,0.00020547,2]
[388592428,1759246342591,-1262.19,0.00020547,2]
[388592429,1759246342601,-4877.12,0.00020547,2]
[388592430,1759246342611,-500.0,0.00020547,2]
[388592431,1759246342621,-968.06,0.00020547,2]
[388592432,1759246342630,-500.0,0.00020547,2]
[388592433,1759246342640,-933.84,0.00020547,2]
[388592434,1759246342650,-1063.83,0.00020547,2]
[388592435,1759246342659,-500.0,0.00020547,2]
[388592436,1759246342669,-1380.92,0.00020547,2]
[388592437,1759246342679,-500.0,0.00020547,2]
[388592438,1759246342688,-500.0,0.00020547,2]
[388592439,1759246342697,-1653.6,0.00020547,2]
[388592440,1759246342707,-398.18082416,0.00020547,2]
[388592441,1759246342716,-500.0,0.00020547,2]
[388592442,1759246342726,-904.06,0.00020547,2]
[388592443,1759246342735,-500.0,0.00020547,2]
[388592444,1759246342745,-300.56706512,0.00020547,2]
[388592445,1759246342755,-888.74,0.00020547,2]
[388592446,1759246342764,-497.60869717,0.00020547,2]
[388592447,1759246342774,-901.55,0.00020547,2]
[388592448,1759246343263,-571.08580239,0.00020547,2]
[388592449,1759246343286,-523.29,0.00020547,2]
[388592450,1759246343296,-1069.66,0.00020547,2]
[388592451,1759246343306,-500.0,0.00020547,2]
[388592452,1759246343316,-1738.73,0.00020547,2]
[388592453,1759246343325,-500.0,0.00020547,2]
[388592454,1759246343338,-500.0,0.00020547,2]
[388592455,1759246343349,-500.0,0.00020547,2]
[388592456,1759246343359,-1334.66,0.00020547,2]
[388592457,1759246343369,-772.87,0.00020547,2]
[388592458,1759246343379,-1457.28,0.00020547,2]
[388592459,1759246343391,-500.0,0.00020547,2]
[388592460,1759246343401,-2042.26,0.00020547,2]
[388592461,1759246343410,-500.0,0.00020547,2]
[388592462,1759246343420,-789.99,0.00020547,2]
[388592463,1759246343430,-500.0,0.00020547,2]
[388592464,1759246343439,-4908.82,0.00020547,2]
[388592465,1759246343449,-599.17,0.00020547,2]
[388592466,1759246343459,-688.98,0.00020547,2]
[388592467,1759246343469,-1033.67,0.00020547,2]
[388592468,1759246343480,-3533.54,0.00020547,2]
[388592469,1759246343490,-3132.29,0.00020547,2]
[388592470,1759246343501,-738.59,0.00020547,2]
[388592471,1759246343510,-753.73,0.00020547,2]
[388592472,1759246343519,-500.0,0.00020547,2]
[388592473,1759246343529,-500.0,0.00020547,2]
[388592474,1759246343538,-500.0,0.00020547,2]
[388592475,1759246343548,-3629.01,0.00020547,2]
[388592476,1759246343558,-702.96,0.00020547,2]
[388592477,1759246343569,-278.82578,0.00020547,2]
[388592478,1759246343580,-500.0,0.00020547,2]
[388592479,1759246343590,-500.0,0.00020547,2]
[388592480,1759246343604,-1002.63,0.00020547,2]
[388592481,1759246343614,-2006.84,0.00020547,2]
[388592482,1759246343624,-500.0,0.00020547,2]
[388592483,1759246343636,-5279.13,0.00020547,2]
[388592484,1759246343645,-958.36,0.00020547,2]
[388592485,1759246343656,-1530.68,0.00020547,2]
[388592486,1759246343665,-500.0,0.00020547,2]
[388592487,1759246343675,-1791.18,0.00020547,2]
[388592488,1759246343685,-630.96,0.00020547,2]
[388592489,1759246343696,-500.0,0.00020547,2]
[388592490,1759246343705,-6094.5,0.00020547,2]
[388592491,1759246343715,-500.0,0.00020547,2]
[388592492,1759246343726,-928.38,0.00020547,2]
[388592493,1759246343735,-2498.35,0.00020547,2]
[388592494,1759246343745,-678.96,0.00020547,2]
[388592495,1759246343755,-702.97,0.00020547,2]
[388592496,1759246343765,-500.0,0.00020547,2]
[388592497,1759246343776,-3187.71,0.00020547,2]
[388592498,1759246343786,-500.0,0.00020547,2]
[388592499,1759246343796,-500.0,0.00020547,2]
[388592500,1759246343806,-500.0,0.00020547,2]
[388592501,1759246343816,-500.0,0.00020547,2]
[388592502,1759246343826,-3214.37,0.00020547,2]
[388592503,1759246343835,-871.68,0.00020547,2]
[388592504,1759246343848,-1474.61,0.00020547,2]
[388592505,1759246343858,-3264.57,0.00020547,2]
[388592506,1759246343868,-500.0,0.00020547,2]
[388592507,1759246343878,-4106.25,0.00020547,2]
[388592508,1759246343890,-524.38804097,0.00020547,2]
[388592509,1759246343900,-1077.96,0.00020547,2]
[388592510,1759246343910,-4498.22,0.00020547,2]
[388592511,1759246343921,-1151.92,0.00020547,2]
[388592512,1759246343932,-802.15,0.00020547,2]
[388592513,1759246343942,-730.58,0.00020547,2]
[388592514,1759246343952,-500.0,0.00020547,2]
[388592515,1759246343961,-4232.33,0.00020547,2]
[388592516,1759246343972,-2236.75,0.00020547,2]
[388592517,1759246343982,-3523.6,0.00020547,2]
[388592518,1759246343992,-500.0,0.00020547,2]
[388592519,1759246344001,-500.0,0.00020547,2]
[388592520,1759246344011,-3770.1,0.00020547,2]
[388592521,1759246344022,-505.11,0.00020547,2]
[388592522,1759246344031,-1379.28,0.00020547,2]
[388592523,1759246344041,-4031.11,0.00020547,2]
[388592524,1759246344051,-1999.95,0.00020547,2]
[388592525,1759246344060,-500.0,0.00020547,2]
[388592526,1759246344070,-4787.28,0.00020547,2]
[388592527,1759246344079,-755.69,0.00020547,2]
[388592528,1759246344089,-218.85,0.00020547,2]
[388592529,1759246344099,-553.91,0.00020547,2]
[388592530,1759246344109,-689.23,0.00020547,2]
[388592531,1759246344119,-3887.09133776,0.00020547,2]
[388592532,1759246345104,-758.75866224,0.00020547,2]
[388592533,1759246345114,-234.5682836,0.00020547,2]
[388592534,1759246345126,-3873.6417164,0.00020547,2]
[388592535,1759246345137,-1277.94,0.00020547,2]
[388592536,1759246345147,-500.0,0.00020547,2]
[388592537,1759246345157,-1066.81,0.00020547,2]
[388592538,1759246345166,-237.39102862,0.00020547,2]
[388592539,1759246345176,-500.0,0.00020547,2]
[388592540,1759246345186,-500.0,0.00020547,2]
[388592541,1759246345195,-500.0,0.00020547,2]
[388592542,1759246345205,-4076.64,0.00020547,2]
[388592543,1759246345214,-500.0,0.00020547,2]
[388592544,1759246345224,-4772.39,0.00020547,2]
[388592545,1759246345234,-1310.52,0.00020547,2]
[388592546,1759246345244,-1714.76,0.00020547,2]
[388592547,1759246345254,-500.0,0.00020547,2]
[388592548,1759246345264,-500.0,0.00020547,2]
[388592549,1759246345274,-500.0,0.00020547,2]
[388592550,1759246345284,-500.0,0.00020547,2]
[388592551,1759246345295,-2530.75,0.00020547,2]
[388592552,1759246345305,-500.0,0.00020547,2]
[388592553,1759246345315,-500.0,0.00020547,2]
[388592554,1759246345325,-1052.95,0.00020547,2]
[388592555,1759246345335,-562.81,0.00020547,2]
[388592556,1759246345349,-28.84134046,0.00020547,2]
[388592557,1759246346898,-458.56562217,0.00016908,2]
[388592558,1759246346910,-109.72220041,0.00016908,2]
[388592559,1759246346921,-287.039162,0.000191,2]
[388592560,1759246346931,-230.366618,0.00019177,2]
[388592561,1759246346941,-151.0,0.00019178,2]
[388592562,1759246346951,-193.001754,0.00019178,2]
[388592563,1759246346960,-210.33026559,0.00019178,2]
[388592564,1759246347005,-289.66973441,0.00019178,2]
[388592565,1759246347014,-193.001754,0.00019178,2]
[388592566,1759246347024,-500.0,0.00019178,2]
[388592567,1759246347033,-1270.91,0.00019178,2]
[388592568,1759246347043,-798.23,0.00019178,2]
[388592569,1759246347052,-500.0,0.00019178,2]
[388592570,1759246347061,-500.0,0.00019178,2]
[388592571,1759246347071,-500.0,0.00019178,2]
[388592572,1759246347080,-500.0,0.00019178,2]
[388592573,1759246347089,-500.0,0.00019178,2]
[388592574,1759246347099,-151.0,0.000194,2]
[388592575,1759246347108,-193.00175419,0.000194,2]
[388592576,1759246347118,-500.0,0.00019452,2]
[388592577,1759246347128,-1960.27,0.00019452,2]
[388592578,1759246347139,-500.0,0.00019452,2]
[388592579,1759246347151,-500.0,0.00019452,2]
[388592580,1759246347160,-1270.91,0.00019452,2]
[388592581,1759246347171,-798.23,0.00019452,2]
[388592582,1759246347181,-500.0,0.00019452,2]
[388592583,1759246347190,-500.0,0.00019452,2]
[388592584,1759246347200,-500.0,0.00019452,2]
[388592585,1759246347209,-500.0,0.00019452,2]
[388592586,1759246347219,-500.0,0.00019726,2]
[388592587,1759246347228,-606.08,0.00019726,2]
[388592588,1759246347238,-500.0,0.00019726,2]
[388592589,1759246347247,-500.0,0.00019726,2]
[388592590,1759246347257,-1960.27,0.00019726,2]
[388592591,1759246347266,-500.0,0.00019726,2]
[388592592,1759246347275,-500.0,0.00019726,2]
[388592593,1759246347285,-1270.91,0.00019726,2]
[388592594,1759246347293,-798.23,0.00019726,2]
[388592595,1759246347303,-500.0,0.00019726,2]
[388592596,1759246347312,-500.0,0.00019726,2]
[388592597,1759246347321,-500.0,0.00019726,2]
[388592598,1759246347331,-150.0,0.00019726,2]
[388592599,1759246347344,-150.0,0.0002,2]
[388592600,1759246347353,-500.0,0.0002,2]
[388592601,1759246347362,-606.08,0.0002,2]
[388592602,1759246347371,-500.0,0.0002,2]
[388592603,1759246347380,-1960.27,0.0002,2]
[388592604,1759246347392,-500.0,0.0002,2]
[388592605,1759246347401,-500.0,0.0002,2]
[388592606,1759246347411,-1270.91,0.0002,2]
[388592607,1759246347420,-2.0270574,0.0002,2]
[388592608,1759246347465,-250.56161002,0.00018338,2]
[388592609,1759246347474,-500.0,0.00019178,2]
[388592610,1759246347483,-500.0,0.00019452,2]
[388592611,1759246347492,-500.0,0.00019726,2]
[388592612,1759246347502,-796.2029426,0.0002,2]
[388592613,1759246347511,-500.0,0.0002,2]
[388592614,1759246347520,-500.0,0.0002,2]
[388592615,1759246347529,-500.0,0.0002,2]
[388592616,1759246347538,-389.20057279,0.00020273,2]
[388592617,1759246347550,-110.79942721,0.00020273,2]
[388592618,1759246347559,-606.08,0.00020273,2]
[388592619,1759246347568,-500.0,0.00020273,2]
[388592620,1759246347577,-194.70141694,0.00020273,2]
[388592621,1759246347588,-1765.56858306,0.00020273,2]
[388592622,1759246347598,-500.0,0.00020273,2]
[388592623,1759246347607,-500.0,0.00020273,2]
[388592624,1759246347617,-1270.91,0.00020273,2]
[388592625,1759246347626,-798.23,0.00020273,2]
[388592626,1759246347636,-500.0,0.00020273,2]
[388592627,1759246347646,-500.0,0.00020273,2]
[388592628,1759246347655,-500.0,0.00020273,2]
[388592629,1759246347664,-150.0,0.00020274,2]
[388592630,1759246347674,-997.25252153,0.00020547,2]
[388592631,1759246347686,-2748.56613801,0.00020547,2]
[388592632,1759246347695,-8540.161841,0.00020547,2]
[388592633,1759246347705,-3595.55,0.00020547,2]
[388592634,1759246347714,-836.75,0.00020547,2]
[388592635,1759246347723,-74.43404884,0.00020547,2]
[388592636,1759246347752,-425.56595116,0.00020547,2]
[388592637,1759246347761,-750.66,0.00020547,2]
[388592638,1759246347771,-354.136583,0.00020547,2]
[388592639,1759246347780,-1783.61,0.00020547,2]
[388592640,1759246347790,-417.411714,0.00020547,2]
[388592641,1759246347799,-405.942172,0.00020547,2]
[388592642,1759246347809,-286.39756354,0.00020547,2]
[388592643,1759246347889,1000.0,0.00016438,2]
[388592644,1759246348513,-395.65,0.0001699,2]
[388592645,1759246348523,-395.65,0.0001699,2]
[388592646,1759246348532,-395.65,0.0001699,2]
[388592647,1759246348542,-395.65,0.0001699,2]
[388592648,1759246348551,-561.227504,0.00017,2]
[388592649,1759246348560,-358.43224387,0.000191,2]
[388592650,1759246348572,-202.79526013,0.000191,2]
[388592651,1759246348581,-561.227504,0.00019177,2]
[388592652,1759246348590,-369.79866429,0.00019178,2]
[388592653,1759246348601,-130.20133571,0.00019178,2]
[388592654,1759246348610,-334.89106807,0.00019178,2]
[388592655,1759246348622,-165.10893193,0.00019178,2]
[388592656,1759246348632,-500.0,0.00019178,2]
[388592657,1759246348642,-500.0,0.00019178,2]
[388592658,1759246348651,-256.71606609,0.00019452,2]
[388592659,1759246348773,-375.03084577,0.00019178,2]
[388592660,1759246354353,200.0,0.00033055,120]
[388592661,1759246354584,478.2,0.00016439,2]
[388592662,1759246387933,160.0,0.00016438,2]
[388592663,1759246447961,50000.0,0.00033055,60]
[388592664,1759246451680,50000.0,0.00033055,61]
[388592665,1759246455111,50000.0,0.00033055,62]
[388592666,1759246458600,50000.0,0.00033055,63]
[388592667,1759246461943,50000.0,0.00033055,64]
[388592668,1759246627361,4000.0,0.00033458,60]
[388592669,1759246703908,518.66,0.00016499,2]
[388592670,1759246727834,164.74,0.00016433,2]
[388592674,1759246763180,500.0,0.00016545,2]
[388592675,1759246793057,282.09,0.0001651,2]
[388592676,1759246811169,-172.09322339,0.00016611,2]
[388592677,1759246812293,-39.06654361,0.00016611,2]
[388592678,1759246867290,1150.3,0.00016389,2]
[388592825,1759246899798,210.34,0.00016375,2]
[388592826,1759246899856,174.1,8.18e-05,2]
[388592827,1759246900040,174.1,0.00010907,2]
[388592828,1759246900132,174.1,0.00013634,2]
[388592829,1759246900219,174.1,0.00016361,2]
[388592844,1759247040867,150.0,0.00016215,2]
[388592846,1759247069349,50000.0,0.00033026,60]
[388592847,1759247072851,-407.26355286,0.00016645,3]
[388592848,1759247073198,50000.0,0.00033026,61]
[388592849,1759247077568,-269.55067101,0.00016645,3]
[388592850,1759247078664,50000.0,0.00033026,62]
[388592851,1759247082418,50000.0,0.00033026,63]
[388592852,1759247085696,50000.0,0.00033026,64]
[388592853,1759247101576,167.88535837,0.00016554,2]
[388592854,1759247105076,-280.44932899,0.00016636,3]
[388592855,1759247108611,-323.78477378,0.00016636,3]
[388592857,1759247112885,-248.56,0.00016627,3]
[388592858,1759247115978,-300.0,0.00016627,3]
[388592859,1759247117440,-157.97,0.00016627,3]
[388592860,1759247118390,150.0,0.00016148,7]
[388592861,1759247119593,-300.0,0.00016627,3]
[388592862,1759247123472,-244.32017853,0.00016627,3]
[388592863,1759247125077,-151.44,0.00016627,3]
[388592864,1759247127870,-333.55,0.00016627,3]
[388592865,1759247128744,-567.21017853,0.00016627,3]
[388592866,1759247128761,-196.94964294,0.00016627,3]
[388592867,1759247128771,-567.21017853,0.00016636,3]
[388592868,1759247132059,-186.12341732,0.00016618,3]
[388592869,1759247135926,-300.0,0.00016618,3]
[388592871,1759247138053,-300.0,0.00016618,3]
[388592872,1759247141168,-300.0,0.00016618,3]
[388592873,1759247142213,-242.59081823,0.00016618,3]
[388592874,1759247144749,-160.0,0.00016618,3]
[388592875,1759247146999,-425.18432866,0.00016618,3]
[388592876,1759247150799,-639.63931113,0.0001661,3]
[388592877,1759247152627,-398.89302505,0.0001661,3]
[388592878,1759247156159,-1461.46766382,0.0001661,3]
[388592879,1759247156182,-281.64908416,0.00016618,3]
[388592880,1759247157696,-304.45235163,0.00016618,3]
[388592881,1759247157895,400.0,0.00016535,2]
[388592882,1759247167932,2500.0,0.00016601,3]
[388592883,1759247170765,150.0,0.00016048,2]
[388592884,1759247183935,10000.0,0.00033028,60]
[388592885,1759247185987,309.23977261,0.00016,2]